[Event "23rd Hoogeveen Open 2019"]
[Site "Hoogeveen"]
[Date "2019.10.23"]
[Round "6.8"]
[White "Moksh Amit Doshi"]
[Black "Morozov, Nichita"]
[Result "1-0"]
[ECO "E20"]
[WhiteElo "2328"]
[BlackElo "2394"]
[Annotator "ChessBase"]
[PlyCount "87"]
[EventDate "2019.10.19"]
[EventType "swiss"]
[EventCountry "NED"]
[SourceTitle "playchess.com"]
[Source "ChessBase"]
[SourceQuality "1"]
[TimeControl "40/5400+30:1800+30"]

1. d4 {[%emt 0:00:00]} Nf6 {[%emt 0:02:30]} 2. c4 {[%emt 0:00:08]} e6 {[%emt 0:00:05]} 3. Nc3 {[%emt 0:00:34]} Bb4 {[%emt 0:00:59]} 4. f3 {[%emt 0:00:07]} d5 {[%emt 0:04:07]} 5. a3 {[%emt 0:00:08]} Be7 {[%emt 0:04:08]} 6. e4 {[%emt 0:00:10]} dxe4 {[%emt 0:03:11]} 7. fxe4 {[%emt 0:00:12]} e5 {[%emt 0:00:11]} 8. d5 {[%emt 0:00:07]} Bg4 {[%emt 0:03:34]} 9. Be2 {[%emt 0:05:38]} h5 {[%emt 0:02:32]} 10. Nf3 {[%emt 0:04:20]} Nbd7 {[%emt 0:07:44]} 11. Qc2 {[%emt 0:04:29]} h4 {[%emt 0:03:23]} 12. Be3 {[%emt 0:01:55]} Nh5 {[%emt 0:02:15]} 13. O-O-O {[%emt 0:03:14]} Bxf3 {[%emt 0:00:04]} 14. Bxf3 {[%emt 0:00:58]} Bg5 {[%emt 0:00:06]} 15. Bxg5 {[%emt 0:01:34]} Qxg5+ {[%emt 0:00:05]} 16. Kb1 {[%emt 0:00:08]} O-O {[%emt 0:04:20]} 17. Bxh5 {[%emt 0:07:55]} Qxh5 {[%emt 0:00:04]} 18. Rhf1 {[%emt 0:01:46]} a6 {[%emt 0:03:48]} 19. Rf5 {[%emt 0:02:52]} Qh6 {[%emt 0:01:22]} 20. Qe2 {[%emt 0:04:30]} g6 {[%emt 0:03:50]} 21. Qg4 {[%emt 0:01:21]} b5 {[%emt 0:03:28]} 22. Rf3 {[%emt 0:08:37]} Nb6 {[%emt 0:01:21]} 23. cxb5 {[%emt 0:07:19]} axb5 {[%emt 0:10:34]} 24. Rh3 {[%emt 0:02:10]} Na4 {[%emt 0:02:21]} 25. Na2 {[%emt 0:02:21]} Kg7 {[%emt 0:06:58]} 26. Qxh4 {[%emt 0:05:37]} Qxh4 {[%emt 0:00:11]} 27. Rxh4 {[%emt 0:00:05]} Rh8 {[%emt 0:00:18]} 28. Rxh8 {[%emt 0:00:06]} Rxh8 {[%emt 0:00:03]} 29. h3 {[%emt 0:01:10]} Rh4 {[%emt 0:00:55]} 30. Re1 {[%emt 0:00:00]} Rf4 {[%emt 0:01:49]} 31. Re2 {[%emt 0:00:00]} f5 {[%emt 0:04:53]} 32. exf5 {[%emt 0:00:13]} gxf5 {[%emt 0:00:59]} 33. Nb4 {[%emt 0:06:43]} Kf6 {[%emt 0:09:13]} 34. Na6 {[%emt 0:03:11]} Rc4 {[%emt 0:05:42]} 35. Rc2 {[%emt 0:01:11]} Nb6 {[%emt 0:02:57]} 36. Nxc7 {[%emt 0:01:28]} e4 {[%emt 0:00:42]} 37. b3 {[%emt 0:04:15]} Rxc2 {[%emt 0:00:04]} 38. Kxc2 {[%emt 0:00:07]} Ke5 {[%emt 0:00:41]} 39. g3 {[%emt 0:00:59]} b4 {[%emt 0:00:19]} 40. a4 {[%emt 0:06:22]} Kd6 {[%emt 0:00:05]} 41. a5 {[%emt 0:30:04]} Nd7 {[%emt 0:30:04]} 42. Nb5+ {[%emt 0:00:10]} Kxd5 {[%emt 0:00:03]} 43. a6 {[%emt 0:00:08]} Kc6 {[%emt 0:01:16]} 44. a7 {[%emt 0:01:58]} 1-0

[Event "23rd Hoogeveen Open 2019"]
[Site "Hoogeveen"]
[Date "2019.10.23"]
[Round "6.13"]
[White "Barthel, Ansgar"]
[Black "Seul, Georg"]
[Result "0-1"]
[ECO "B06"]
[WhiteElo "2037"]
[BlackElo "2411"]
[Annotator "ChessBase"]
[PlyCount "56"]
[EventDate "2019.10.19"]
[EventType "swiss"]
[EventCountry "NED"]
[SourceTitle "playchess.com"]
[Source "ChessBase"]
[SourceQuality "1"]
[TimeControl "40/5400+30:1800+30"]

1. e4 {[%emt 0:00:00]} d6 {[%emt 0:00:00]} 2. d4 {[%emt 0:00:00]} g6 {[%emt 0:00:00]} 3. Nc3 {[%emt 0:00:00]} Bg7 {[%emt 0:00:00]} 4. Be3 {[%emt 0:00:18]} a6 {[%emt 0:00:00]} 5. Qd2 {[%emt 0:00:51]} b5 {[%emt 0:00:10]} 6. O-O-O {[%emt 0:00:44]} Bb7 {[%emt 0:01:43]} 7. f3 {[%emt 0:00:06]} Nd7 {[%emt 0:00:26]} 8. Kb1 {[%emt 0:01:35]} Ngf6 {[%emt 0:04:19]} 9. g4 {[%emt 0:11:13]} Nb6 {[%emt 0:01:42]} 10. Bd3 {[%emt 0:00:43]} h5 {[%emt 0:04:35]} 11. g5 {[%emt 0:03:11]} Nfd7 {[%emt 0:00:08]} 12. h4 {[%emt 0:08:40]} c5 {[%emt 0:05:57]} 13. dxc5 {[%emt 0:00:10]} dxc5 {[%emt 0:25:26]} 14. Nd5 {[%emt 0:14:32]} Bxd5 {[%emt 0:00:52]} 15. exd5 {[%emt 0:01:35]} c4 {[%emt 0:09:15]} 16. Be4 {[%emt 0:02:33]} c3 {[%emt 0:00:19]} 17. Qf2 {[%emt 0:05:21]} cxb2 {[%emt 0:09:57]} 18. Bd4 {[%emt 0:03:07]} Bxd4 {[%emt 0:00:39]} 19. Qxd4 {[%emt 0:00:05]} O-O {[%emt 0:00:09]} 20. Ne2 {[%emt 0:01:26]} Rc8 {[%emt 0:01:07]} 21. Bd3 {[%emt 0:14:06]} Nc5 {[%emt 0:03:05]} 22. Nc3 {[%emt 0:04:52]} Nca4 {[%emt 0:04:00]} 23. Nxa4 {[%emt 0:00:13]} Nxa4 {[%emt 0:00:04]} 24. Rde1 {[%emt 0:00:22]} Qd6 {[%emt 0:10:03]} 25. Re3 {[%emt 0:05:34]} e5 {[%emt 0:03:56]} 26. Qxe5 {[%emt 0:03:30]} Nc3+ {[%emt 0:00:13]} 27. Kxb2 {[%emt 0:00:17]} Qb4+ {[%emt 0:00:05]} 28. Ka1 {[%emt 0:03:21]} Qa3 {[%emt 0:00:16]} 0-1

[Event "23rd Hoogeveen Open 2019"]
[Site "Hoogeveen"]
[Date "2019.10.23"]
[Round "6.14"]
[White "Vestby-Ellingsen, Mads"]
[Black "Dev, Shah"]
[Result "0-1"]
[ECO "D11"]
[WhiteElo "2363"]
[BlackElo "2025"]
[Annotator "ChessBase"]
[PlyCount "72"]
[EventDate "2019.10.19"]
[EventType "swiss"]
[EventCountry "NED"]
[SourceTitle "playchess.com"]
[Source "ChessBase"]
[SourceQuality "1"]
[TimeControl "40/5400+30:1800+30"]

1. d4 {[%emt 0:00:00]} d5 {[%emt 0:00:22]} 2. c4 {[%emt 0:00:00]} c6 {[%emt 0:00:07]} 3. Nf3 {[%emt 0:00:00]} Nf6 {[%emt 0:00:02]} 4. g3 {[%emt 0:00:29]} Bf5 {[%emt 0:02:16]} 5. Nc3 {[%emt 0:00:17]} e6 {[%emt 0:03:42]} 6. Nh4 {[%emt 0:00:17]} Bg4 {[%emt 0:02:57]} 7. h3 {[%emt 0:00:14]} Bh5 {[%emt 0:00:06]} 8. g4 {[%emt 0:00:11]} Bg6 {[%emt 0:08:28]} 9. Nxg6 {[%emt 0:00:15]} hxg6 {[%emt 0:01:51]} 10. g5 {[%emt 0:00:14]} Nh5 {[%emt 0:04:51]} 11. Qb3 {[%emt 0:17:06]} Qb6 {[%emt 0:05:44]} 12. e3 {[%emt 0:00:27]} Nd7 {[%emt 0:03:29]} 13. Bd2 {[%emt 0:05:15]} Be7 {[%emt 0:12:37]} 14. h4 {[%emt 0:01:42]} O-O-O {[%emt 0:01:37]} 15. O-O-O {[%emt 0:04:05]} Kb8 {[%emt 0:01:29]} 16. Kb1 {[%emt 0:03:03]} Rc8 {[%emt 0:07:10]} 17. Be2 {[%emt 0:03:47]} Rhd8 {[%emt 0:03:18]} 18. Qc2 {[%emt 0:07:22]} dxc4 {[%emt 0:10:05]} 19. Bxc4 {[%emt 0:01:18]} Qc7 {[%emt 0:00:40]} 20. Be2 {[%emt 0:07:36]} Nb6 {[%emt 0:03:28]} 21. Bc1 {[%emt 0:13:33]} Rd7 {[%emt 0:09:24]} 22. a3 {[%emt 0:10:26]} Rcd8 {[%emt 0:02:46]} 23. Bxh5 {[%emt 0:04:03]} gxh5 {[%emt 0:00:05]} 24. Qh7 {[%emt 0:00:14]} Nc4 {[%emt 0:05:29]} 25. Qxg7 {[%emt 0:17:36]} Qa5 {[%emt 0:00:21]} 26. Na2 {[%emt 0:00:08]} Qf5+ {[%emt 0:04:33]} 27. Ka1 {[%emt 0:00:08]} Qc2 {[%emt 0:00:42]} 28. d5 {[%emt 0:03:09]} f6 {[%emt 0:00:29]} 29. Qh6 {[%emt 0:01:00]} Bxa3 {[%emt 0:00:47]} 30. bxa3 {[%emt 0:00:32]} Na5 {[%emt 0:00:08]} 31. Rd3 {[%emt 0:00:29]} Qxd3 {[%emt 0:00:16]} 32. Nb4 {[%emt 0:00:31]} Qe4 {[%emt 0:00:40]} 33. Rd1 {[%emt 0:00:14]} c5 {[%emt 0:00:28]} 34. gxf6 {[%emt 0:00:47]} cxb4 {[%emt 0:00:21]} 35. f7 {[%emt 0:00:26]} Qc2 {[%emt 0:01:28]} 36. Qg6 {[%emt 0:00:10]} Nb3# {[%emt 0:00:07]} 0-1

[Event "23rd Hoogeveen Open 2019"]
[Site "Hoogeveen"]
[Date "2019.10.23"]
[Round "6.15"]
[White "Blagojevic, Tijana"]
[Black "Manush Shah"]
[Result "0-1"]
[ECO "B12"]
[WhiteElo "2151"]
[BlackElo "2352"]
[Annotator "ChessBase"]
[PlyCount "90"]
[EventDate "2019.10.19"]
[EventType "swiss"]
[EventCountry "NED"]
[SourceTitle "playchess.com"]
[Source "ChessBase"]
[SourceQuality "1"]
[TimeControl "40/5400+30:1800+30"]

1. e4 {[%emt 0:07:54]} c6 {[%emt 0:00:00]} 2. d4 {[%emt 0:00:06]} d5 {[%emt 0:00:00]} 3. f3 {[%emt 0:00:05]} dxe4 {[%emt 0:00:26]} 4. fxe4 {[%emt 0:00:06]} e5 {[%emt 0:00:06]} 5. Nf3 {[%emt 0:00:13]} Bg4 {[%emt 0:00:19]} 6. Bc4 {[%emt 0:00:57]} Nd7 {[%emt 0:00:25]} 7. c3 {[%emt 0:02:03]} Bh5 {[%emt 0:00:27]} 8. O-O {[%emt 0:00:49]} Ngf6 {[%emt 0:00:46]} 9. Bg5 {[%emt 0:01:00]} Qc7 {[%emt 0:08:12]} 10. Qe1 {[%emt 0:03:02]} Bd6 {[%emt 0:02:36]} 11. Nbd2 {[%emt 0:01:15]} O-O {[%emt 0:01:33]} 12. Qh4 {[%emt 0:00:57]} Bg6 {[%emt 0:02:20]} 13. Rae1 {[%emt 0:00:51]} Rae8 {[%emt 0:14:03]} 14. Bb3 {[%emt 0:03:31]} b5 {[%emt 0:02:24]} 15. Kh1 {[%emt 0:03:23]} Nh5 {[%emt 0:09:25]} 16. g4 {[%emt 0:09:04]} Nhf6 {[%emt 0:01:48]} 17. dxe5 {[%emt 0:21:08]} Bxe5 {[%emt 0:02:31]} 18. Nxe5 {[%emt 0:02:06]} Qxe5 {[%emt 0:00:16]} 19. Rf5 {[%emt 0:05:03]} Bxf5 {[%emt 0:03:58]} 20. gxf5 {[%emt 0:00:04]} Qd6 {[%emt 0:16:02]} 21. Rg1 {[%emt 0:07:44]} Kh8 {[%emt 0:00:37]} 22. Bf4 {[%emt 0:01:39]} Qe7 {[%emt 0:01:37]} 23. Qg5 {[%emt 0:08:58]} Rg8 {[%emt 0:06:34]} 24. Bc2 {[%emt 0:00:40]} g6 {[%emt 0:10:31]} 25. e5 {[%emt 0:02:33]} Nxe5 {[%emt 0:05:24]} 26. Re1 {[%emt 0:00:14]} Nfd7 {[%emt 0:03:12]} 27. f6 {[%emt 0:00:10]} Qe6 {[%emt 0:01:11]} 28. Re3 {[%emt 0:05:45]} Qg4 {[%emt 0:00:55]} 29. Ne4 {[%emt 0:02:49]} Qxg5 {[%emt 0:02:48]} 30. Bxg5 {[%emt 0:00:51]} Ng4 {[%emt 0:02:02]} 31. Nd6 {[%emt 0:00:56]} Ndxf6 {[%emt 0:00:56]} 32. Nxe8 {[%emt 0:01:19]} Rxe8 {[%emt 0:00:25]} 33. Rxe8+ {[%emt 0:00:30]} Nxe8 {[%emt 0:00:02]} 34. h3 {[%emt 0:01:46]} Ne5 {[%emt 0:00:21]} 35. Be3 {[%emt 0:00:08]} a6 {[%emt 0:01:41]} 36. Bd4 {[%emt 0:00:05]} f6 {[%emt 0:00:03]} 37. Be4 {[%emt 0:00:05]} Nd6 {[%emt 0:00:12]} 38. Bg2 {[%emt 0:00:14]} Ndf7 {[%emt 0:01:08]} 39. b3 {[%emt 0:00:44]} Kg7 {[%emt 0:00:09]} 40. a4 {[%emt 0:00:21]} Kf8 {[%emt 0:00:34]} 41. a5 {[%emt 0:31:07]} Ke7 {[%emt 0:30:27]} 42. Kg1 {[%emt 0:00:10]} Kd6 {[%emt 0:00:54]} 43. b4 {[%emt 0:00:50]} Ng5 {[%emt 0:00:00]} 44. Bc5+ {[%emt 0:00:00]} Kd7 {[%emt 0:00:00]} 45. Kf2 {[%emt 0:00:00]} Nd3+ {[%emt 0:00:00]} 0-1

[Event "23rd Hoogeveen Open 2019"]
[Site "Hoogeveen"]
[Date "2019.10.23"]
[Round "6.16"]
[White "Elgersma, Onno"]
[Black "Sparenberg, Erik"]
[Result "1-0"]
[ECO "C84"]
[WhiteElo "2306"]
[BlackElo "2142"]
[Annotator "ChessBase"]
[PlyCount "87"]
[EventDate "2019.10.19"]
[EventType "swiss"]
[EventCountry "NED"]
[SourceTitle "playchess.com"]
[Source "ChessBase"]
[SourceQuality "1"]
[TimeControl "40/5400+30:1800+30"]

1. e4 {[%emt 0:00:00]} e5 {[%emt 0:00:38]} 2. Nf3 {[%emt 0:00:00]} Nc6 {[%emt 0:00:04]} 3. Bb5 {[%emt 0:00:00]} a6 {[%emt 0:00:12]} 4. Ba4 {[%emt 0:00:00]} Nf6 {[%emt 0:00:04]} 5. O-O {[%emt 0:00:00]} Be7 {[%emt 0:00:21]} 6. d3 {[%emt 0:00:00]} d6 {[%emt 0:00:06]} 7. c4 {[%emt 0:01:45]} O-O {[%emt 0:00:18]} 8. h3 {[%emt 0:01:42]} Bd7 {[%emt 0:07:57]} 9. Be3 {[%emt 0:01:10]} Nb8 {[%emt 0:03:08]} 10. Nc3 {[%emt 0:05:26]} c5 {[%emt 0:09:06]} 11. a3 {[%emt 0:04:22]} Nc6 {[%emt 0:07:58]} 12. b4 {[%emt 0:09:09]} cxb4 {[%emt 0:07:22]} 13. Bxc6 {[%emt 0:02:20]} bxc3 {[%emt 0:05:25]} 14. Bxb7 {[%emt 0:01:29]} Rb8 {[%emt 0:03:27]} 15. Rb1 {[%emt 0:04:57]} Qc7 {[%emt 0:03:12]} 16. Bxa6 {[%emt 0:02:33]} Qa5 {[%emt 0:04:44]} 17. Bb7 {[%emt 0:05:30]} Ba4 {[%emt 0:04:30]} 18. Qc1 {[%emt 0:02:50]} c2 {[%emt 0:07:49]} 19. Rb4 {[%emt 0:07:40]} d5 {[%emt 0:03:11]} 20. Bb6 {[%emt 0:17:00]} Bxb4 {[%emt 0:02:31]} 21. Bxa5 {[%emt 0:00:13]} Bxa5 {[%emt 0:00:08]} 22. Bc6 {[%emt 0:09:56]} Bxc6 {[%emt 0:03:39]} 23. Qxc2 {[%emt 0:00:22]} dxe4 {[%emt 0:00:28]} 24. Nxe5 {[%emt 0:00:05]} exd3 {[%emt 0:00:56]} 25. Qxd3 {[%emt 0:00:13]} Be4 {[%emt 0:03:26]} 26. Qd4 {[%emt 0:01:06]} Rbd8 {[%emt 0:13:23]} 27. Qb2 {[%emt 0:06:54]} Rd2 {[%emt 0:04:07]} 28. Qb5 {[%emt 0:02:44]} Bc7 {[%emt 0:00:00]} 29. Nc6 {[%emt 0:01:08]} Re8 {[%emt 0:00:00]} 30. Nb4 {[%emt 0:06:24]} h6 {[%emt 0:00:21]} 31. c5 {[%emt 0:01:25]} Red8 {[%emt 0:02:13]} 32. c6 {[%emt 0:02:28]} Nd5 {[%emt 0:02:38]} 33. Nxd5 {[%emt 0:01:09]} Bxd5 {[%emt 0:01:17]} 34. Qb7 {[%emt 0:00:52]} Be5 {[%emt 0:00:49]} 35. Qb6 {[%emt 0:00:43]} Bf6 {[%emt 0:01:01]} 36. c7 {[%emt 0:01:55]} Rf8 {[%emt 0:00:44]} 37. Qd6 {[%emt 0:01:39]} Rc8 {[%emt 0:00:44]} 38. Qd7 {[%emt 0:00:17]} Rf8 {[%emt 0:00:22]} 39. c8=Q {[%emt 0:00:12]} Rxc8 {[%emt 0:00:26]} 40. Qxc8+ {[%emt 0:00:07]} Kh7 {[%emt 0:00:20]} 41. Qf5+ {[%emt 0:31:05]} Kg8 {[%emt 0:30:03]} 42. Rb1 {[%emt 0:01:02]} Kf8 {[%emt 0:01:13]} 43. Qf4 {[%emt 0:00:47]} Rc2 {[%emt 0:00:00]} 44. Qd6+ {[%emt 0:00:00]} 1-0

[Event "23rd Hoogeveen Open 2019"]
[Site "Hoogeveen"]
[Date "2019.10.23"]
[Round "6.17"]
[White "Tabak, Stefan"]
[Black "De Jong, Migchiel"]
[Result "0-1"]
[ECO "A09"]
[WhiteElo "2181"]
[BlackElo "2330"]
[Annotator "ChessBase"]
[PlyCount "118"]
[EventDate "2019.10.19"]
[EventType "swiss"]
[EventCountry "NED"]
[SourceTitle "playchess.com"]
[Source "ChessBase"]
[SourceQuality "1"]
[TimeControl "40/5400+30:1800+30"]

1. g3 {[%emt 0:00:00]} d5 {[%emt 0:01:03]} 2. Bg2 {[%emt 0:00:44]} e5 {[%emt 0:00:26]} 3. c4 {[%emt 0:01:15]} d4 {[%emt 0:01:20]} 4. d3 {[%emt 0:00:21]} Nc6 {[%emt 0:01:02]} 5. Nf3 {[%emt 0:00:22]} Bb4+ {[%emt 0:00:41]} 6. Nbd2 {[%emt 0:00:48]} a5 {[%emt 0:00:29]} 7. Qc2 {[%emt 0:02:01]} Nf6 {[%emt 0:00:57]} 8. O-O {[%emt 0:02:27]} O-O {[%emt 0:00:48]} 9. a3 {[%emt 0:07:24]} Be7 {[%emt 0:01:54]} 10. b3 {[%emt 0:00:24]} h6 {[%emt 0:01:19]} 11. Bb2 {[%emt 0:03:46]} Bf5 {[%emt 0:01:31]} 12. Nh4 {[%emt 0:04:07]} Bh7 {[%emt 0:00:21]} 13. Bh3 {[%emt 0:00:57]} Bc5 {[%emt 0:06:20]} 14. Ne4 {[%emt 0:01:21]} Nxe4 {[%emt 0:05:19]} 15. dxe4 {[%emt 0:00:08]} Ne7 {[%emt 0:00:21]} 16. Nf5 {[%emt 0:02:31]} Nxf5 {[%emt 0:00:37]} 17. exf5 {[%emt 0:00:14]} c6 {[%emt 0:04:30]} 18. Kh1 {[%emt 0:02:11]} Re8 {[%emt 0:01:31]} 19. Bg2 {[%emt 0:03:41]} d3 {[%emt 0:01:53]} 20. exd3 {[%emt 0:03:48]} Bxf5 {[%emt 0:00:09]} 21. Rad1 {[%emt 0:00:15]} Bd4 {[%emt 0:07:40]} 22. Bc1 {[%emt 0:01:31]} Qd7 {[%emt 0:03:48]} 23. Rfe1 {[%emt 0:02:48]} Rad8 {[%emt 0:01:42]} 24. Be3 {[%emt 0:14:16]} Qe7 {[%emt 0:04:29]} 25. c5 {[%emt 0:19:42]} Qf6 {[%emt 0:00:59]} 26. Bxd4 {[%emt 0:02:49]} Rxd4 {[%emt 0:00:19]} 27. f4 {[%emt 0:05:39]} Re6 {[%emt 0:01:12]} 28. fxe5 {[%emt 0:02:56]} Rxe5 {[%emt 0:00:11]} 29. Rxe5 {[%emt 0:01:43]} Qxe5 {[%emt 0:00:05]} 30. Qc3 {[%emt 0:02:53]} Qe2 {[%emt 0:02:06]} 31. Qc1 {[%emt 0:11:15]} Rxd3 {[%emt 0:00:25]} 32. Rxd3 {[%emt 0:00:31]} Qxd3 {[%emt 0:00:16]} 33. b4 {[%emt 0:00:12]} axb4 {[%emt 0:02:03]} 34. axb4 {[%emt 0:00:05]} Be4 {[%emt 0:00:37]} 35. Qe1 {[%emt 0:00:45]} f5 {[%emt 0:00:21]} 36. h4 {[%emt 0:00:57]} Qd5 {[%emt 0:00:45]} 37. Bxe4 {[%emt 0:00:36]} Qxe4+ {[%emt 0:00:11]} 38. Qxe4 {[%emt 0:00:09]} fxe4 {[%emt 0:00:02]} 39. Kg2 {[%emt 0:00:55]} Kf7 {[%emt 0:00:05]} 40. Kf2 {[%emt 0:00:32]} Ke6 {[%emt 0:00:52]} 41. Ke3 {[%emt 0:02:17]} Ke5 {[%emt 0:00:06]} 42. h5 {[%emt 0:00:06]} Kf5 {[%emt 0:00:46]} 43. Kd4 {[%emt 0:00:14]} e3 {[%emt 0:01:42]} 44. Kxe3 {[%emt 0:00:11]} Kg4 {[%emt 0:00:04]} 45. Ke4 {[%emt 0:00:25]} Kxh5 {[%emt 0:00:18]} 46. Ke5 {[%emt 0:08:45]} Kg4 {[%emt 0:00:11]} 47. Kd6 {[%emt 0:00:04]} Kxg3 {[%emt 0:00:05]} 48. Kc7 {[%emt 0:00:03]} h5 {[%emt 0:00:06]} 49. Kxb7 {[%emt 0:00:08]} h4 {[%emt 0:00:05]} 50. Kxc6 {[%emt 0:02:20]} h3 {[%emt 0:00:07]} 51. b5 {[%emt 0:00:04]} h2 {[%emt 0:00:05]} 52. Kc7 {[%emt 0:01:01]} h1=Q {[%emt 0:00:07]} 53. b6 {[%emt 0:00:44]} Kf4 {[%emt 0:04:01]} 54. c6 {[%emt 0:02:44]} Ke5 {[%emt 0:00:28]} 55. b7 {[%emt 0:08:10]} Kd5 {[%emt 0:00:06]} 56. Kb6 {[%emt 0:02:14]} Qg1+ {[%emt 0:00:34]} 57. Kc7 {[%emt 0:00:34]} Qc5 {[%emt 0:00:16]} 58. b8=N {[%emt 0:00:56]} Qa7+ {[%emt 0:00:12]} 59. Kc8 {[%emt 0:00:12]} Kd6 {[%emt 0:00:29]} 0-1

[Event "23rd Hoogeveen Open 2019"]
[Site "Hoogeveen"]
[Date "2019.10.23"]
[Round "6.18"]
[White "De Boer, Eelke"]
[Black "Pekin, Tolgay"]
[Result "1-0"]
[ECO "B33"]
[WhiteElo "2323"]
[BlackElo "2083"]
[Annotator "ChessBase"]
[PlyCount "95"]
[EventDate "2019.10.19"]
[EventType "swiss"]
[EventCountry "NED"]
[SourceTitle "playchess.com"]
[Source "ChessBase"]
[SourceQuality "1"]
[TimeControl "40/5400+30:1800+30"]

1. e4 {[%emt 0:00:00]} c5 {[%emt 0:00:00]} 2. Nf3 {[%emt 0:00:00]} Nc6 {[%emt 0:00:00]} 3. d4 {[%emt 0:00:00]} cxd4 {[%emt 0:00:00]} 4. Nxd4 {[%emt 0:00:00]} Nf6 {[%emt 0:00:01]} 5. Nc3 {[%emt 0:00:00]} e5 {[%emt 0:00:04]} 6. Ndb5 {[%emt 0:00:00]} d6 {[%emt 0:00:11]} 7. Bg5 {[%emt 0:00:06]} a6 {[%emt 0:00:05]} 8. Na3 {[%emt 0:00:03]} b5 {[%emt 0:00:08]} 9. Nd5 {[%emt 0:00:07]} Be7 {[%emt 0:00:12]} 10. Bxf6 {[%emt 0:00:06]} Bxf6 {[%emt 0:00:05]} 11. c3 {[%emt 0:00:09]} Ne7 {[%emt 0:00:33]} 12. Nxf6+ {[%emt 0:00:24]} gxf6 {[%emt 0:00:06]} 13. Bd3 {[%emt 0:01:01]} d5 {[%emt 0:02:55]} 14. Qe2 {[%emt 0:03:22]} dxe4 {[%emt 0:02:14]} 15. Bxe4 {[%emt 0:00:54]} Rb8 {[%emt 0:00:29]} 16. O-O {[%emt 0:07:18]} f5 {[%emt 0:03:17]} 17. Bc2 {[%emt 0:02:04]} Qc7 {[%emt 0:02:00]} 18. Rae1 {[%emt 0:01:39]} Ng6 {[%emt 0:06:44]} 19. Qh5 {[%emt 0:07:11]} Qc6 {[%emt 0:37:19]} 20. Bxf5 {[%emt 0:20:30]} Bxf5 {[%emt 0:12:13]} 21. Qxf5 {[%emt 0:00:14]} O-O {[%emt 0:05:40]} 22. Nc2 {[%emt 0:09:10]} f6 {[%emt 0:09:43]} 23. Ne3 {[%emt 0:02:14]} Rb7 {[%emt 0:01:12]} 24. f3 {[%emt 0:05:27]} Kh8 {[%emt 0:06:24]} 25. Qe4 {[%emt 0:03:47]} Qb6 {[%emt 0:03:22]} 26. Kh1 {[%emt 0:00:09]} Rd7 {[%emt 0:01:05]} 27. Rd1 {[%emt 0:03:42]} Rfd8 {[%emt 0:00:23]} 28. Rxd7 {[%emt 0:06:32]} Rxd7 {[%emt 0:00:04]} 29. Rd1 {[%emt 0:03:19]} Rxd1+ {[%emt 0:03:02]} 30. Nxd1 {[%emt 0:00:05]} Qe6 {[%emt 0:02:00]} 31. b3 {[%emt 0:02:39]} f5 {[%emt 0:00:50]} 32. Qa8+ {[%emt 0:01:17]} Kg7 {[%emt 0:00:06]} 33. Ne3 {[%emt 0:00:25]} Nf4 {[%emt 0:01:53]} 34. Qd8 {[%emt 0:01:29]} h6 {[%emt 0:00:43]} 35. g3 {[%emt 0:01:07]} Nh3 {[%emt 0:01:00]} 36. Kg2 {[%emt 0:11:53]} Ng5 {[%emt 0:00:43]} 37. h4 {[%emt 0:00:15]} Nf7 {[%emt 0:00:38]} 38. Qd3 {[%emt 0:00:08]} f4 {[%emt 0:00:50]} 39. gxf4 {[%emt 0:01:06]} exf4 {[%emt 0:00:04]} 40. Qd4+ {[%emt 0:00:11]} Qe5 {[%emt 0:00:20]} 41. Nd5 {[%emt 0:31:33]} a5 {[%emt 0:03:11]} 42. Kf2 {[%emt 0:00:00]} b4 {[%emt 0:01:27]} 43. Qxe5+ {[%emt 0:00:00]} Nxe5 {[%emt 0:00:06]} 44. cxb4 {[%emt 0:00:00]} Nd3+ {[%emt 0:00:06]} 45. Ke2 {[%emt 0:00:00]} Nxb4 {[%emt 0:00:10]} 46. Nxb4 {[%emt 0:00:00]} axb4 {[%emt 0:00:05]} 47. Kd3 {[%emt 0:00:00]} Kg6 {[%emt 0:00:44]} 48. Ke4 {[%emt 0:00:00]} 1-0

[Event "23rd Hoogeveen Open 2019"]
[Site "Hoogeveen"]
[Date "2019.10.23"]
[Round "6.19"]
[White "Wiersma, Eelke"]
[Black "Takawira, Erick"]
[Result "1/2-1/2"]
[ECO "C84"]
[WhiteElo "2321"]
[BlackElo "2101"]
[Annotator "ChessBase"]
[PlyCount "47"]
[EventDate "2019.10.19"]
[EventType "swiss"]
[EventCountry "NED"]
[SourceTitle "playchess.com"]
[Source "ChessBase"]
[SourceQuality "1"]
[TimeControl "40/5400+30:1800+30"]

1. e4 {[%emt 0:00:00]} e5 {[%emt 0:00:00]} 2. Nf3 {[%emt 0:00:00]} Nc6 {[%emt 0:00:00]} 3. Bb5 {[%emt 0:00:00]} a6 {[%emt 0:00:00]} 4. Ba4 {[%emt 0:00:02]} Nf6 {[%emt 0:00:00]} 5. O-O {[%emt 0:00:11]} Be7 {[%emt 0:00:00]} 6. d3 {[%emt 0:00:08]} b5 {[%emt 0:00:00]} 7. Bb3 {[%emt 0:00:11]} d6 {[%emt 0:01:28]} 8. a4 {[%emt 0:00:10]} Rb8 {[%emt 0:01:08]} 9. axb5 {[%emt 0:00:46]} axb5 {[%emt 0:00:01]} 10. c3 {[%emt 0:00:14]} O-O {[%emt 0:00:19]} 11. d4 {[%emt 0:00:10]} exd4 {[%emt 0:05:01]} 12. cxd4 {[%emt 0:00:52]} Bg4 {[%emt 0:02:21]} 13. Nc3 {[%emt 0:02:57]} Qd7 {[%emt 0:11:03]} 14. d5 {[%emt 0:09:46]} Ne5 {[%emt 0:13:12]} 15. Nxe5 {[%emt 0:01:28]} dxe5 {[%emt 0:00:02]} 16. f3 {[%emt 0:01:03]} Bc5+ {[%emt 0:00:28]} 17. Kh1 {[%emt 0:00:23]} Bh5 {[%emt 0:00:03]} 18. Qe2 {[%emt 0:01:36]} Ne8 {[%emt 0:02:51]} 19. Be3 {[%emt 0:04:28]} Bxe3 {[%emt 0:00:13]} 20. Qxe3 {[%emt 0:00:09]} Bg6 {[%emt 0:02:04]} 21. f4 {[%emt 0:21:21]} exf4 {[%emt 0:00:38]} 22. Rxf4 {[%emt 0:00:15]} Nd6 {[%emt 0:22:40]} 23. e5 {[%emt 0:04:03]} Rfe8 {[%emt 0:03:59]} 24. Qa7 {[%emt 0:14:50]} 1/2-1/2